bitfinex-derivatives/quotes_ETHF0:USTF0_20250327
["timestamp","ask_amount","ask_price","bid_price","bid_amount"]
[1743046104160,6.24776,2030.9,2030.8,0.00738698]
[1743046106063,6.24776,2030.9,2030.8,0.99209698]
[1743046106463,6.24776,2030.9,2030.8,1.91420718]
[1743046107068,6.24776,2030.9,2030.8,0.92949718]
[1743046107460,6.24776,2030.9,2030.8,0.00738698]
[1743046119876,6.24776,2030.9,2030.8,0.92949718]
[1743046119877,2.0701,2030.9,2030.8,0.92949718]
[1743046120077,5.2631,2030.9,2030.8,0.92949718]
[1743046120278,6.24776,2030.9,2030.8,0.92949718]
[1743046120669,6.24776,2030.9,2030.8,3.65679718]
[1743046120874,4.5465,2030.9,2030.8,4.64150718]
[1743046121070,1.3535,2030.9,2030.8,7.84930718]
[1743046121267,6.29812,2031.2,2031.1,0.98456]
[1743046121472,4.88462,2031.2,2031.1,0.9221102]
[1743046121674,4.88462,2031.2,2031.0,0.98457]
[1743046121869,4.88462,2031.2,2031.1,3.8848702]
[1743046122380,4.88462,2031.2,2031.1,1.9782]
[1743046123079,4.88462,2031.2,2031.1,3.65926]
[1743046123476,3.9001,2031.2,2031.1,3.65926]
[1743046123778,4.88462,2031.2,2031.1,3.65926]
[1743046124775,4.88462,2031.2,2031.1,2.6747]
[1743046125365,4.88462,2031.2,2031.1,3.65926]
[1743046125571,3.9001,2031.2,2031.1,3.65926]
[1743046126171,3.9001,2031.2,2031.1,4.5813702]
[1743046126577,4.88462,2031.2,2031.1,3.5968102]
[1743046126978,3.9001,2031.2,2031.1,4.5813702]
[1743046127177,4.17752,2031.2,2031.1,3.5968102]
[1743046127480,4.17752,2031.2,2031.1,4.5813702]
[1743046127881,3.193,2031.2,2031.1,4.5813702]
[1743046128082,4.17752,2031.2,2031.1,4.5813702]
[1743046128574,4.17752,2031.2,2031.1,3.5968102]
[1743046130484,3.19938698,2031.3,2031.2,0.98452]
[1743046130683,4.16965054,2031.3,2031.2,3.2172302]
[1743046130882,4.16965054,2031.3,2031.2,2.2327102]
[1743046131383,3.192,2031.5,2031.4,0.98442]
[1743046131587,3.192,2031.5,2031.4,1.9065302]
[1743046131780,52.852,2031.6,2031.5,0.98437]
[1743046131977,52.852,2031.6,2031.5,3.2170802]
[1743046132686,53.83632,2031.6,2031.5,2.2327102]
[1743046133274,0.98432,2031.6,2031.5,2.2327102]
[1743046133884,4.19949698,2031.7,2031.5,3.2170802]
[1743046134183,3.21518698,2031.7,2031.6,2.3435102]
[1743046134390,4.19945698,2031.7,2031.6,2.3435102]
[1743046136290,0.99165698,2031.7,2031.6,1.4214]
[1743046138793,0.98437,2031.5,2031.4,3.9207]
[1743046139094,0.98437,2031.5,2031.4,4.8428102]
[1743046139293,0.98437,2031.5,2031.4,3.0570102]
[1743046139591,1.68547,2031.5,2031.4,3.0570102]
[1743046139993,3.06727,2031.5,2031.4,3.0570102]
[1743046140189,1.3818,2031.5,2031.4,4.0414302]
[1743046140489,2.36617,2031.5,2031.4,4.0414302]
[1743046140694,1.3818,2031.5,2031.4,4.0414302]
[1743046141196,1.3818,2031.5,2031.4,3.0570102]
[1743046141197,2.36617,2031.5,2031.4,3.0570102]
[1743046141391,2.36617,2031.5,2031.4,4.0414302]
[1743046141587,1.3818,2031.5,2031.4,4.0414302]
[1743046142191,2.36617,2031.5,2031.4,3.0570102]
[1743046142394,2.36617,2031.5,2031.4,4.0414302]
[1743046142592,1.3818,2031.5,2031.4,4.0414302]
[1743046143094,2.36617,2031.5,2031.4,4.0414302]
[1743046143295,2.36617,2031.5,2031.4,3.0570102]
[1743046144792,1.3818,2031.5,2031.4,4.0414302]
[1743046145092,0.00738698,2031.7,2031.4,3.0570102]
[1743046145295,0.00738698,2031.7,2031.6,4.1299102]
[1743046145491,0.00738698,2031.7,2031.6,5.4270102]
[1743046145693,0.00738698,2031.7,2031.6,6.4113302]
[1743046145892,0.00738698,2031.7,2031.6,5.4270102]
[1743046146090,1.38608698,2031.7,2031.6,5.4270102]
[1743046146295,2.37035698,2031.7,2031.6,5.4270102]
[1743046146500,1.38608698,2031.7,2031.6,5.4270102]
[1743046146701,1.38608698,2031.7,2031.6,6.4113302]
[1743046149404,1.38608698,2031.7,2031.6,8.5613302]
[1743046149605,1.38608698,2031.7,2031.6,6.4113302]
[1743046150098,1.38608698,2031.7,2031.6,8.5513302]
[1743046150306,1.38608698,2031.7,2031.6,6.4113302]
[1743046152503,1.38608698,2031.7,2031.6,3.2035302]
[1743046157810,0.00738698,2031.7,2031.6,3.2035302]
[1743046158109,4.86292,2032.1,2031.9,0.98417]
[1743046158298,4.86292,2032.1,2031.9,1.9062802]
[1743046158700,4.86292,2032.1,2031.9,2.5850802]
[1743046158900,0.98413,2032.0,2031.9,1.6009102]
[1743046159206,2.30543,2032.0,2031.9,0.9221102]
[1743046159408,1.3213,2032.0,2031.9,0.9221102]
[1743046159607,2.30543,2032.0,2031.9,0.9221102]
[1743046160294,1.3213,2032.0,2031.9,3.3174902]
[1743046161607,2.30543,2032.0,2031.9,3.3174902]
[1743046162113,1.3213,2032.0,2031.9,3.3174902]
[1743046163700,1.3213,2032.0,2031.9,5.6374902]
[1743046163904,1.3213,2032.0,2031.9,3.3174902]
[1743046165512,1.3213,2032.0,2031.9,5.5674902]
[1743046165708,1.3213,2032.0,2031.9,3.3174902]
[1743046169419,1.3213,2032.0,2031.9,4.8174902]
[1743046169721,1.3213,2032.0,2031.9,3.3174902]
[1743046171405,1.3213,2032.0,2031.9,5.4074902]
[1743046171617,1.3213,2032.0,2031.9,3.3174902]
[1743046171916,1.3213,2032.0,2031.9,4.6674902]
[1743046172115,1.3213,2032.0,2031.9,3.3174902]
[1743046173911,1.3213,2032.0,2031.9,5.2474902]
[1743046174110,1.3213,2032.0,2031.9,3.3174902]
[1743046178823,1.3213,2032.0,2031.9,4.6974902]
[1743046180027,1.3213,2032.0,2031.9,5.5074902]
[1743046180226,1.3213,2032.0,2031.9,5.5174902]
[1743046180430,1.3213,2032.0,2031.9,3.3174902]
[1743046180930,1.3213,2032.0,2031.9,7.2774902]
[1743046181931,1.3213,2032.0,2031.9,3.3174902]
[1743046182530,1.3213,2032.0,2031.9,5.4374902]
[1743046183035,1.3213,2032.0,2031.9,3.3174902]
[1743046183439,1.3213,2032.0,2031.9,8.7352902]
[1743046183840,1.3213,2032.0,2031.9,8.6652902]
[1743046184438,1.3213,2032.0,2031.9,8.5552902]
[1743046184639,1.3213,2032.0,2031.9,6.5252902]
[1743046184938,1.3213,2032.0,2031.9,11.5152902]
[1743046185137,1.3213,2032.0,2031.9,9.3252902]
[1743046185638,1.3213,2032.0,2031.9,6.5252902]
[1743046186341,1.3213,2032.0,2031.9,8.5252902]
[1743046186639,1.3213,2032.0,2031.9,6.5252902]
[1743046186939,1.3213,2032.0,2031.9,8.8552902]
[1743046187137,1.3213,2032.0,2031.9,6.5252902]
[1743046187440,1.3213,2032.0,2031.9,8.6052902]
[1743046188040,1.3213,2032.0,2031.9,6.5252902]
[1743046188536,1.3213,2032.0,2031.9,3.3174902]
[1743046188736,1.3213,2032.0,2031.9,6.5252902]
[1743046189239,1.3213,2032.0,2031.9,5.2774902]
[1743046189540,1.3213,2032.0,2031.9,9.4752902]
[1743046190242,1.3213,2032.0,2031.9,6.5252902]
[1743046191649,1.3213,2032.0,2031.9,8.7552902]
[1743046192549,1.3213,2032.0,2031.9,6.5252902]
[1743046192746,1.3213,2032.0,2031.9,8.5052902]
[1743046193047,1.3213,2032.0,2031.9,6.5252902]
[1743046193648,1.3213,2032.0,2031.9,8.7752902]
[1743046193844,1.3213,2032.0,2031.9,6.5252902]
[1743046196448,1.3213,2032.0,2031.9,3.3174902]
[1743046196854,1.3213,2032.0,2031.9,6.5252902]
[1743046197353,1.3213,2032.0,2031.9,8.5252902]
[1743046197746,1.3213,2032.0,2031.9,6.5252902]
[1743046199055,1.3213,2032.0,2031.9,8.4952902]
[1743046199254,1.3213,2032.0,2031.9,6.5252902]
[1743046199444,1.3213,2032.0,2031.9,3.3174902]
[1743046199647,1.3213,2032.0,2031.9,6.5252902]
[1743046200054,1.3213,2032.0,2031.9,9.1152902]
[1743046202656,4.19165,2032.6,2032.5,0.98389]
[1743046202956,3.8538,2032.6,2032.4,0.98391]
[1743046203153,0.98389,2032.5,2032.4,41.78391]
[1743046204061,2.94939,2032.5,2032.4,41.78391]
[1743046205355,2.94939,2032.5,2032.4,0.98391]
[1743046205959,1.9655,2032.5,2032.4,0.98391]
[1743046206559,1.9655,2032.5,2032.4,2.33581]
[1743046208462,2.94939,2032.5,2032.4,2.33581]
[1743046208855,2.94939,2032.5,2032.4,0.98391]
[1743046209567,1.9655,2032.5,2032.4,0.98391]
[1743046210363,2.94939,2032.5,2032.4,0.98391]
[1743046210862,1.9655,2032.5,2032.4,0.98391]
[1743046211465,2.94939,2032.5,2032.4,0.98391]
[1743046214463,1.9655,2032.5,2032.3,5.2221]
[1743046214662,5.58854,2032.4,2032.3,3.17825208]
[1743046218064,0.98398,2032.3,2032.2,0.99141698]
[1743046218259,3.05778,2032.3,2032.2,0.99141698]
[1743046219067,2.0738,2032.3,2032.2,0.99141698]
[1743046219269,1.4258,2032.3,2032.2,2.40971698]
[1743046219467,1.4258,2032.3,2032.2,4.74971698]
[1743046219767,1.4258,2032.3,2032.2,2.40971698]
[1743046219961,1.4258,2032.3,2032.2,4.39971698]
[1743046220158,1.4258,2032.3,2032.2,2.40971698]
[1743046220566,1.4258,2032.3,2032.2,4.36971698]
[1743046221563,1.4258,2032.3,2032.2,2.40971698]
[1743046222067,1.4258,2032.3,2032.2,4.53971698]
[1743046222459,1.4258,2032.3,2032.2,2.40971698]
[1743046222661,1.4258,2032.3,2032.2,4.66971698]
[1743046222965,0.00492464,2032.7,2032.2,10.41787718]
[1743046223173,0.00492464,2032.7,2032.6,1.9059502]
[1743046223363,0.00492464,2032.7,2032.6,2.6225502]
[1743046223665,0.00492464,2032.7,2032.6,5.3611502]
[1743046224177,0.00492464,2032.7,2032.6,3.3711502]
[1743046224373,0.00492464,2032.7,2032.6,4.7748502]
[1743046227272,4.5679,2033.1,2033.0,0.98364]
[1743046227273,0.7058,2033.1,2033.0,0.98364]
[1743046227465,50.59552,2033.3,2033.1,0.98356]
[1743046227665,3.8516,2033.2,2033.1,0.98356]
[1743046228775,5.1986,2033.2,2033.1,2.39916]
[1743046228973,2.0126,2033.2,2033.1,2.39916]
[1743046229575,2.0126,2033.2,2033.1,2.3992]
[1743046232575,2.99615,2033.2,2033.0,2.31741]
[1743046232767,1.4031,2033.1,2033.0,4.6691202]
[1743046238271,1.4031,2033.1,2033.0,6.8591202]
[1743046240379,0.08562181,2034.8,2033.2,2.45887]
[1743046240580,1.3594,2034.8,2034.7,3.20287536]
[1743046240787,1.3594,2034.8,2034.4,3.7338146]
[1743046240972,0.7166,2034.7,2034.6,0.98286]
[1743046241175,0.7166,2034.7,2034.6,1.5088746]
[1743046241373,2.076,2034.7,2034.6,0.98286]
[1743046241879,2.076,2034.7,2034.6,2.32956]
[1743046242480,2.076,2034.7,2034.6,1.3467]
[1743046242679,2.076,2034.7,2034.6,2.32957]
[1743046242884,2.076,2034.7,2034.6,1.3467]
[1743046243280,2.076,2034.7,2034.6,2.32957]
[1743046243980,2.076,2034.7,2034.6,1.3467]
[1743046244175,3.05882,2034.7,2034.6,1.3467]
[1743046244685,2.076,2034.7,2034.6,2.32957]
[1743046244982,2.076,2034.7,2034.6,1.3467]
[1743046244983,3.05882,2034.7,2034.6,1.3467]
[1743046245284,3.05882,2034.7,2034.6,2.32957]
[1743046245486,3.05882,2034.7,2034.5,41.78289]
[1743046245784,3.05882,2034.7,2034.6,0.5260146]
[1743046246184,3.05882,2034.7,2034.6,0.98287]
[1743046246381,2.076,2034.7,2034.6,0.98287]
[1743046247579,3.05882,2034.7,2034.6,0.98287]
[1743046247782,3.05882,2034.7,2034.5,2.28688]
[1743046247982,3.05882,2034.7,2034.6,0.5260146]
[1743046248186,2.076,2034.7,2034.6,1.5088846]
[1743046248385,2.076,2034.7,2034.6,0.98287]
[1743046248584,3.05882,2034.7,2034.6,0.98287]
[1743046248786,3.05882,2034.7,2034.5,2.28689]
[1743046249085,3.05882,2034.7,2034.6,0.5260146]
[1743046249486,3.05882,2034.7,2034.5,2.28688]
[1743046249787,3.05882,2034.7,2034.6,0.5260146]
[1743046250287,3.05882,2034.7,2034.5,2.28688]
[1743046250583,3.05882,2034.7,2034.6,0.5260146]
[1743046250785,3.05882,2034.7,2034.5,2.28688]
[1743046250988,3.05882,2034.7,2034.6,0.5260146]
[1743046251181,3.05884,2034.7,2034.5,2.2869]
[1743046251382,3.05884,2034.7,2034.6,0.5260146]
[1743046251782,0.98287,2034.6,2034.5,0.9829]
[1743046251983,1.3114,2034.6,2034.5,0.9829]
[1743046252183,1.3114,2034.6,2034.5,1.5089146]
[1743046254980,2.29427,2034.6,2034.5,0.5260146]
[1743046255587,1.3114,2034.6,2034.5,1.5089346]
[1743046255789,2.29427,2034.6,2034.5,2.8997346]
[1743046256090,1.3114,2034.6,2034.5,2.8997346]
[1743046257286,2.29427,2034.6,2034.5,2.8997346]
[1743046258186,2.29427,2034.6,2034.5,1.9168146]
[1743046258379,2.29427,2034.6,2034.5,2.8997346]
[1743046258990,2.29427,2034.6,2034.5,1.9168146]
[1743046260379,1.3114,2034.6,2034.5,2.8997346]
[1743046260983,3.249,2034.9,2034.6,0.98285]
[1743046261193,2.33784,2034.7,2034.6,0.98285]
[1743046261493,2.33784,2034.7,2034.6,3.8613]
[1743046261698,2.33784,2034.7,2034.6,4.3873146]
[1743046262494,2.33784,2034.7,2034.6,3.8613]
[1743046263084,2.33784,2034.7,2034.6,4.3873146]
[1743046263890,2.33784,2034.7,2034.6,5.3701846]
[1743046265597,2.33784,2034.7,2034.6,4.3873146]
[1743046267092,2.33784,2034.7,2034.6,3.7338146]
[1743046269287,2.33784,2034.7,2034.6,4.7166846]
[1743046269488,1.355,2034.7,2034.6,4.7166846]
[1743046270699,2.33782,2034.7,2034.6,4.7166846]
[1743046271193,1.355,2034.7,2034.6,4.7166846]
[1743046273501,2.354,2034.7,2034.6,4.7166846]
[1743046273702,3.33682,2034.7,2034.6,3.7338146]
[1743046273903,3.33682,2034.7,2034.6,4.7166846]
[1743046274901,3.33682,2034.7,2034.6,3.7338146]
[1743046275294,2.354,2034.7,2034.6,4.7166846]
[1743046280003,2.354,2034.7,2034.6,6.0842846]
[1743046287104,3.33682,2034.7,2034.6,6.0842846]
[1743046287506,3.33682,2034.7,2034.6,5.1014146]
[1743046287907,3.33682,2034.7,2034.6,158.3914146]
[1743046289211,3.33682,2034.7,2034.6,159.3742846]
[1743046289411,0.999,2034.7,2034.6,159.3742846]
[1743046289609,0.6954,2035.1,2034.6,160.4514146]
[1743046289911,1.67803,2035.1,2035.0,3.2078]
[1743046290309,1.67803,2035.1,2035.0,3.9169]
[1743046290910,3.09043,2035.1,2035.0,3.9169]
[1743046291108,2.1078,2035.1,2035.0,4.89958]
[1743046291313,2.1078,2035.1,2035.0,6.27708]
[1743046293116,1.4124,2035.1,2035.0,6.8030946]
[1743046295015,2.39503,2035.1,2035.0,6.8030946]
[1743046295913,1.4124,2035.1,2035.0,6.8030946]
[1743046299716,0.31266349,2035.5,2035.0,5.8204146]
[1743046300022,1.3073,2035.4,2035.3,0.98251]
[1743046300218,5.83,2036.6,2035.9,3.7338146]
[1743046300409,0.643,2037.3,2035.9,3.7338146]
[1743046300410,2.45467,2036.7,2036.2,3.7338146]
[1743046300610,0.98215,2036.1,2036.0,1.40896865]
[1743046300821,3.29,2036.3,2036.0,3.21516865]
[1743046301023,0.98215,2036.1,2036.0,3.21516865]
[1743046301325,2.8027,2036.2,2036.0,3.21516865]
[1743046301512,2.8027,2036.2,2036.0,4.19736865]
[1743046301513,1.3927,2036.1,2036.0,4.19736865]
[1743046307122,1.3927,2036.1,2036.0,4.72338325]
[1743046308328,2.37485,2036.1,2036.0,3.21516865]
[1743046311315,2.37485,2036.1,2036.0,2.13996865]
[1743046311522,2.37485,2036.1,2036.0,1.14096865]
[1743046317936,5.63585,2036.1,2036.0,1.14096865]
[1743046318523,5.63385,2036.1,2036.0,1.66698325]
[1743046319629,5.63385,2036.1,2036.0,154.95698325]
[1743046320230,1.3927,2036.1,2036.0,154.95698325]
[1743046320538,5.63185,2036.1,2036.0,154.95698325]
[1743046320738,4.6487,2036.1,2036.0,155.93918325]
[1743046321034,4.6487,2036.1,2036.0,157.33958325]
[1743046321840,0.00730757,2036.3,2036.2,0.9821]
[1743046322035,3.26330757,2036.3,2036.2,1.5081146]
[1743046322530,0.00730757,2036.3,2036.2,1.5081146]
[1743046323238,0.00730757,2036.3,2036.2,2.8091146]
[1743046324437,0.00730757,2036.3,2036.2,43.6091146]
[1743046325639,1.3673,2036.5,2036.4,0.982]
[1743046325841,1.3673,2036.5,2036.4,4.7158146]
[1743046326339,1.3673,2036.5,2036.4,6.0552146]
[1743046327142,1.3673,2036.5,2036.4,5.0732146]
[1743046328336,1.3673,2036.5,2036.4,6.0552146]
[1743046328844,1.3673,2036.5,2036.4,5.0732146]
[1743046329335,2.34925,2036.5,2036.4,3.2078]
[1743046333346,2.34925,2036.5,2036.4,4.544]
[1743046334341,1.3673,2036.5,2036.4,4.544]
[1743046334539,2.34925,2036.5,2036.4,4.544]
[1743046335046,2.34925,2036.5,2036.4,5.0700146]
[1743046335237,1.3673,2036.5,2036.4,5.0700146]
[1743046335439,1.3673,2036.5,2036.4,6.0520146]
[1743046335636,4.6133,2036.5,2036.4,6.7565146]
[1743046335843,4.6133,2036.5,2036.4,5.7745146]
[1743046336241,4.6133,2036.5,2036.4,6.7565146]
[1743046336648,4.6133,2036.5,2036.4,5.7745146]
[1743046337250,4.6133,2036.5,2036.4,6.7565146]
[1743046337750,0.6536,2036.7,2036.5,0.98193]
[1743046337949,1.3264,2036.6,2036.5,0.98193]
[1743046338245,2.30833,2036.6,2036.4,4.89428]
[1743046338547,2.30833,2036.6,2036.5,41.3260146]
[1743046339346,2.30833,2036.6,2036.5,0.5260146]
[1743046339649,3.01243,2036.6,2036.5,0.5260146]
[1743046339839,0.98195,2036.5,2036.4,44.0078]
[1743046340043,2.30835,2036.5,2036.4,44.5338146]
[1743046340952,2.30835,2036.5,2036.4,3.7338146]
[1743046341553,2.30835,2036.5,2036.4,3.2078]
[1743046344052,2.30835,2036.5,2036.4,3.7338146]
[1743046344846,2.30835,2036.5,2036.1,3.2078]
[1743046344847,0.98214,2036.2,2036.1,3.2078]
[1743046345246,0.98214,2036.2,2036.1,44.0078]
[1743046345446,3.00944,2036.2,2036.1,44.0078]
[1743046345848,3.00944,2036.2,2036.1,3.2078]
[1743046352557,6.23744,2036.2,2036.1,3.7338146]
[1743046355250,0.6763,2036.4,2036.1,4.7159646]
[1743046355455,2.35627,2036.3,2036.2,1.4113]
[1743046355856,2.35627,2036.3,2036.2,1.9373146]
[1743046356657,2.35627,2036.3,2036.2,2.6199146]
[1743046357561,0.98207,2036.3,2036.2,2.6199146]
[1743046357950,2.35627,2036.3,2036.2,2.6199146]
[1743046362462,1.3742,2036.3,2036.2,3.6020146]
[1743046362761,2.35625,2036.3,2036.2,2.6199146]
[1743046364564,1.3742,2036.3,2036.2,2.6199146]
[1743046364765,2.35625,2036.3,2036.2,2.6199146]
[1743046365863,1.3742,2036.3,2036.1,156.4978]
[1743046366062,2.9601,2036.2,2036.1,156.4978]
[1743046372369,2.9601,2036.2,2036.1,157.9186]
[1743046375079,2.9601,2036.2,2036.1,156.4978]
[1743046376167,2.9601,2036.2,2036.1,157.8608]
[1743046379574,2.9601,2036.2,2036.1,156.4978]
[1743046388177,2.9601,2036.2,2036.1,157.0238146]
[1743046393078,10.2145,2036.2,2036.1,137.97195074]
[1743046393281,11.06305831,2036.2,2036.1,133.75963184]
[1743046393585,12.06784089,2036.2,2036.1,113.58675518]
[1743046393785,12.06784089,2036.2,2036.1,101.79335518]
[1743046393993,12.06784113,2036.2,2036.1,100.18014518]
[1743046394178,12.06784113,2036.2,2036.1,97.21174518]
[1743046394488,61.59484113,2036.2,2036.1,94.10154518]
[1743046394785,61.59484113,2036.2,2036.1,87.07144518]
[1743046395085,61.59484113,2036.2,2036.1,69.69798095]
[1743046395277,61.59484113,2036.2,2036.1,66.69747095]
[1743046395683,61.59484113,2036.2,2036.1,54.15130095]
[1743046395979,61.59484113,2036.2,2036.1,51.71537095]
[1743046396186,61.59484113,2036.2,2036.1,36.13373926]
[1743046396486,61.59484113,2036.2,2036.1,23.39414927]
[1743046397286,61.59483824,2036.2,2036.1,23.39414927]
[1743046398178,61.59483824,2036.2,2036.1,20.91856928]
[1743046398379,61.59483824,2036.2,2036.1,16.26358505]
[1743046398581,61.59483824,2036.2,2036.1,13.61962505]
[1743046398886,61.59484066,2036.2,2036.1,12.53002505]
[1743046399085,61.59484066,2036.2,2036.1,10.02262505]
[1743046399486,61.59484066,2036.2,2036.1,9.14672505]
[1743046399688,61.59484066,2036.2,2036.1,8.09353505]
[1743046399889,0.98224,2035.9,2035.8,0.00736865]
[1743046400183,9.89304,2035.9,2035.8,0.00736865]
[1743046400389,7.39304,2035.9,2035.8,0.00736865]
[1743046400889,8.23912766,2035.9,2035.8,0.00736865]
[1743046401082,10.30512766,2035.9,2035.8,0.00736865]
[1743046401279,11.22807853,2035.9,2035.8,0.00736865]
[1743046402488,15.98247853,2035.9,2035.8,0.00736865]
[1743046407894,15.13639087,2035.9,2035.8,0.00736865]
[1743046408500,14.21344,2035.9,2035.8,0.00736865]
[1743046410091,14.21344,2035.9,2035.8,1.36866865]
[1743046410789,4.7544,2035.9,2035.8,1.89468325]
[1743046410999,7.9534,2035.9,2035.8,2.87697325]
[1743046411188,8.93564,2035.9,2035.8,1.89468325]
[1743046412203,7.9534,2035.9,2035.8,1.89468325]
[1743046412598,3.199,2035.9,2035.8,2.87697325]
[1743046412798,3.199,2035.9,2035.8,1.89468325]
[1743046414501,3.197,2035.9,2035.8,2.87697325]
[1743046414698,58.47134,2036.2,2035.9,0.98223]
[1743046415005,3.198,2036.1,2035.9,3.10503]
[1743046415205,49.527,2036.2,2036.1,0.5260146]
[1743046415515,52.725,2036.2,2036.1,1.5081646]
[1743046415696,0.98204,2036.4,2036.1,2.6359146]
[1743046415891,4.7544,2036.5,2036.3,0.5260146]
[1743046416092,4.7544,2036.5,2036.4,2.6488146]
[1743046416093,5.73639,2036.5,2036.4,2.6488146]
[1743046416292,7.9534,2036.5,2036.4,2.6488146]
[1743046416497,5.73635,2036.5,2036.4,2.6488146]
[1743046416697,8.93535,2036.5,2036.4,2.6488146]
[1743046417401,0.9821,2036.2,2036.1,0.6803]
[1743046417699,4.1841,2036.2,2036.1,0.6803]
[1743046417906,4.1841,2036.2,2036.1,1.2063146]
[1743046418094,7.3919,2036.2,2036.1,0.5260146]
[1743046418706,7.3919,2036.2,2036.1,1.9183146]
[1743046419908,4.1841,2036.2,2036.1,1.9183146]
[1743046420101,3.202,2036.2,2036.1,1.9183146]
[1743046421201,3.202,2036.2,2036.1,2.9004646]
[1743046421400,3.202,2036.2,2036.1,1.9183146]
[1743046422912,2.31352,2036.4,2036.1,2.9004646]
[1743046423201,4.18393,2036.6,2036.3,4.7158446]
[1743046423410,4.18393,2036.6,2036.5,0.5260146]
[1743046423800,4.18393,2036.6,2036.5,1.8348146]
[1743046424009,3.202,2036.6,2036.5,1.8348146]
[1743046425010,4.18391,2036.6,2036.5,1.8348146]
[1743046425812,3.202,2036.6,2036.5,1.8348146]
[1743046426506,5.50621,2036.6,2036.5,1.8348146]
[1743046432017,4.5243,2036.6,2035.9,4.19002]
[1743046432208,0.98205,2036.3,2036.2,1.3224]
[1743046432409,4.17605,2036.3,2036.2,1.3224]
[1743046432605,4.17605,2036.3,2036.0,0.6683]
[1743046432810,3.72683,2036.2,2036.1,1.3224]
[1743046433316,3.72683,2036.2,2036.1,1.8484146]
[1743046433516,1.4136,2036.2,2036.1,1.8484146]
[1743046433916,2.3957,2036.2,2036.1,1.8484146]
[1743046434318,2.3957,2036.2,2036.1,0.5260146]
[1743046441416,2.3957,2036.2,2036.1,1.9386146]
[1743046441623,1.4136,2036.2,2036.1,1.9386146]
[1743046442221,3.192,2036.3,2036.1,2.9207646]
[1743046442417,4.5231,2036.3,2036.2,4.6204]
[1743046442618,4.5231,2036.3,2036.2,5.8284146]
[1743046444025,5.50515,2036.3,2036.2,5.8284146]
[1743046444213,6.21375,2036.3,2036.2,5.1464146]
[1743046448825,5.50515,2036.3,2036.2,5.1464146]
[1743046451429,4.5231,2036.3,2036.2,5.1464146]
[1743046451625,5.50515,2036.3,2036.2,5.1464146]
[1743046451928,4.5231,2036.3,2036.2,5.1464146]
[1743046453231,4.5231,2036.3,2036.2,5.8295146]
[1743046453735,5.50515,2036.3,2036.2,5.8295146]
[1743046462142,5.50515,2036.3,2036.2,0.5260146]
[1743046462738,0.9821,2036.2,2036.1,1.3779]
[1743046462942,2.3035,2036.2,2036.1,1.3779]
[1743046463242,2.3035,2036.2,2036.1,1.9039146]
[1743046467930,2.3035,2036.2,2035.9,0.6482]
[1743046467931,0.9822,2036.0,2035.9,0.6482]
[1743046468135,0.9822,2036.0,2035.9,1.9689]
[1743046468341,0.9822,2036.0,2035.9,2.4949146]
[1743046470233,4.1662,2036.0,2035.9,2.4949146]
[1743046472445,4.8597,2036.0,2035.9,2.4949146]
[1743046473547,4.8597,2036.0,2035.8,0.00736865]
[1743046473548,0.98224,2035.9,2035.8,0.00736865]
[1743046473847,3.09034,2035.9,2035.8,0.53338325]
[1743046474446,3.09034,2035.9,2035.8,1.83078325]
[1743046475338,6.29814,2035.9,2035.8,0.00736865]
[1743046475735,3.09034,2035.9,2035.8,0.00736865]
[1743046479443,6.27434,2035.9,2035.8,0.53338325]
[1743046479951,6.27434,2035.9,2035.8,2.58548325]
[1743046486555,6.27434,2035.9,2035.8,1.91448325]
[1743046489659,6.27434,2035.9,2035.8,0.53338325]
[1743046490954,6.27434,2035.9,2035.8,1.85728325]
[1743046493867,5.58294,2035.9,2035.8,2.56378325]
[1743046494068,5.58294,2035.9,2035.8,3.25268325]
[1743046494375,2.39894,2035.9,2035.8,3.25268325]
[1743046494565,5.58294,2035.9,2035.8,3.25268325]
[1743046500771,2.39894,2035.9,2035.8,3.25268325]
[1743046502668,4.16622,2036.0,2035.8,3.25268325]
[1743046502871,5.59682,2036.0,2035.9,1.9543146]
[1743046503168,1.4306,2036.0,2035.9,1.9543146]
[1743046504369,3.184,2036.3,2036.0,0.98216]
[1743046504674,5.59665,2036.3,2036.2,3.7338146]
[1743046504866,4.6146,2036.3,2036.2,3.7338146]
[1743046505061,4.6146,2036.3,2036.2,5.1065146]
[1743046505970,1.4306,2036.3,2036.2,45.9065146]
[1743046506165,4.7544,2036.4,2036.2,45.9065146]
[1743046506361,4.5439,2036.4,2036.3,1.8987146]
[1743046506561,1.3599,2036.4,2036.3,1.8987146]
[1743046508882,1.3599,2036.4,2036.3,2.8807646]
[1743046510665,3.183,2036.6,2036.4,0.98198]
[1743046510970,4.16491,2036.6,2036.5,1.1886146]
[1743046511879,3.183,2036.6,2036.5,1.1886146]
[1743046512678,5.46721,2036.6,2036.5,1.1886146]
[1743046513181,5.46721,2036.6,2036.5,0.5260146]
[1743046515081,4.4853,2036.6,2036.5,0.5260146]
[1743046515278,5.46721,2036.6,2036.5,0.5260146]
[1743046516784,4.4853,2036.6,2036.5,0.5260146]
[1743046518180,4.4853,2036.6,2036.2,44.0078]
[1743046518386,3.61047,2036.5,2036.2,44.0078]
[1743046518583,1.3075,2036.4,2036.2,46.3573]
[1743046518787,1.3075,2036.4,2036.2,45.3752]
[1743046518986,1.3075,2036.4,2036.3,1.8934146]
[1743046519289,2.2895,2036.4,2036.3,1.8934146]
[1743046519987,1.3075,2036.4,2036.3,1.8934146]
[1743046520487,2.2895,2036.4,2036.3,1.8934146]
[1743046520885,2.2895,2036.4,2036.3,0.5260146]
[1743046521580,0.98205,2036.3,2036.2,3.2078]
[1743046521889,5.56815,2036.3,2036.2,3.2078]
[1743046524079,1.4031,2036.3,2036.2,3.2078]
[1743046524280,4.5861,2036.3,2036.2,4.5594]
[1743046524482,4.5861,2036.3,2036.2,5.2112]
[1743046525087,4.5861,2036.3,2036.2,5.7372146]
[1743046527588,1.4031,2036.3,2036.2,5.7372146]
[1743046527785,4.5861,2036.3,2036.2,6.7193146]
[1743046527988,4.5861,2036.3,2036.2,6.4028146]
[1743046528394,4.5861,2036.3,2036.2,47.2028146]
[1743046529799,4.5861,2036.3,2036.2,43.9950146]